Cogmind - Beta 14 @@@ ROGUE MODE // 2024.09.03 @ 20:58:19 Player: AnotherZach Result: Destroyed by Autobeam Turret with Autobeam Performance ------------- Evolutions (0) 0 Regions Visited (2) 400 Robots Destroyed (26) 130 Value Destroyed (664) 664 Prototype IDs (0) 0 Alien Tech Used (0) 0 Bonus (0) 0 TOTAL SCORE: 1194 Bonus ------- None Cogmind --------- Core Integrity 0/250 Matter 112/300 Energy 180/250 System Corruption 0% Temperature Cool (6) Movement Rolling (110) Ox2 Location -10/Subcaves Parts ------- > --- POWER (1) -------- Ion Engine > --- PROPULSION (2) --- Wheel Wheel > --- UTILITY (2) ------ High-capacity Storage Unit Targeting Computer > --- WEAPON (2) ------- Light Cannon Battle Cannon > --- INVENTORY (20) --- Ion Engine Wheel Wheel Disposable Heat Sink Medium Storage Unit Seismic Detector Targeting Computer Makeshift Light Armor Plating Makeshift Light Armor Plating Recalibrator EM Pulse Gun Battle Rifle Subdweller Machine Gun Mining Laser Multitool Multitool Peak State ------------ > --- POWER ------------ Ion Engine > --- PROPULSION ------- Light Treads Wheel > --- UTILITY ---------- High-capacity Storage Unit Targeting Computer > --- WEAPON ----------- Subdweller Machine Gun Battle Cannon > --- INVENTORY -------- Ion Engine Ion Engine Wheel Wheel Wheel Disposable Heat Sink Medium Storage Unit Seismic Detector Targeting Computer Makeshift Light Armor Plating Makeshift Light Armor Plating Recalibrator EM Pulse Gun Battle Rifle Light Cannon Grenade Launcher Mining Laser Multitool Multitool [Rating: 12] Favorites ----------- Power Ion Engine Engine Ion Engine Propulsion Light Treads Treads Light Treads Wheel Wheel Utility Targeting Computer Device Seismic Detector Storage High-capacity Storage Unit Processor Targeting Computer Weapon Light Cannon Energy Gun EM Pulse Gun Ballistic Gun Light Assault Rifle Ballistic Cannon Light Cannon Launcher Grenade Launcher Special Weapon Mining Laser Build | -11 -10 -10 ------- Run | Yrd Mat Sub Slots Evolved . | . . . Power . | . . . Propulsion . | . . . Utility . | . . . Weapon . | . . . Parts Attached 24 | 7 7 10 Power 3 | 1 1 1 Engine 3 | 1 1 1 Core . | . . . Reactor . | . . . Propulsion 5 | 2 . 3 Treads 2 | 2 . . Leg . | . . . Wheel 3 | . . 3 Hover . | . . . Flight . | . . . Utility 4 | 2 2 . Device 1 | 1 . . Storage 2 | 1 1 . Processor 1 | . 1 . Hackware . | . . . Protection . | . . . Artifact . | . . . Weapon 12 | 2 4 6 Energy Gun 1 | 1 . . Energy Cannon . | . . . Ballistic Gun 2 | 1 . 1 Ballistic Cannon 5 | . 2 3 Launcher 2 | . 1 1 Special Weapon 2 | . 1 1 Impact Weapon . | . . . Slashing Weapon . | . . . Piercing Weapon . | . . . Special Melee Weapon . | . . . Unidentified Prototypes . | . . . Parts Lost 3 | . . 3 Power 1 | . . 1 Propulsion 1 | . . 1 Utility . | . . . Weapon 1 | . . 1 Highest Loss Streak 2 | . . 2 To Critical Strikes . | . . . Average Slot Usage (%) 99 | . 100 99 Engine 13 | . 14 13 Treads 25 | . 28 25 Wheel 2 | . . 2 Storage 14 | . 14 14 Processor 13 | . 11 14 Ballistic Cannon 23 | . 13 25 Special Weapon 1 | . 1 1 Peak Build Rating 12 | 7 8 12 Average Rating 9 | 5 7 10 On Entrance 5 | . 7 8 Naked Turns . | . . . Heaviest Build 52 | 12 51 52 Greatest Support 40 | 40 40 40 Greatest Overweight (x) 5 | . 1 5 Average Overweight (x) 1 | . . 1 Largest Inventory Capacity 20 | 8 20 20 Average Capacity 18 | 7 13 20 Most Carried 20 | 6 12 20 Average Carried 16 | 3 8 18 Final Capacity 20 | 8 20 20 Final Carried 16 | 6 12 16 Class Distribution -------------------- 100% | Mutant Dominant Class ---------------- Mutant | -10/Materials Mutant | -10/Subcaves Resources | -11 -10 -10 ----------- Run | Yrd Mat Sub Matter Collected 776 | 282 89 405 Remotely . | . . . Salvage Created 640 | 180 274 186 Parts 51 | 11 23 17 Haulers Intercepted . | . . . Recyclers Shooed . | . . . Parts Field Recycled . | . . . Retrieved Matter . | . . . Parts Self-Destructed 14 | . . 14 Prevented . | . . . Kills | -11 -10 -10 ------- Run | Yrd Mat Sub Combat Hostiles Destroyed 16 | . 8 8 Guns 1 | . . 1 Cannons 11 | . 4 7 AOE 4 | . 4 . Classes Destroyed 10 | 3 5 2 Worker 1 | 1 . . Builder 1 | . 1 . Tunneler 3 | 2 1 . Recycler 2 | 1 1 . Mechanic 1 | . 1 . Turret 1 | . . 1 Watcher 1 | . 1 . Swarmer 3 | . 3 . Grunt 5 | . 5 . Subdweller 8 | . . 8 Best Kill Streak 11 | 3 11 2 Combat Bots Only 6 | . 6 2 Max Kills in Single Turn 3 | 1 3 1 Gunslinging . | . . . Exploded 3 | . 3 . Melee . | . . . Uniques/NPCs Destroyed . | . . . Combat | -11 -10 -10 -------- Run | Yrd Mat Sub Hostile Shots Fired 136 | . 27 109 Missed 53 | . 8 45 Damage Taken 1151 | 18 288 845 Core 256 | . 50 206 Absorbed by Shields . | . . . Core Remaining (%) 100 | 100 . . Volleys Fired 80 | 12 22 46 Largest 2 | 2 2 2 Hottest 139 | 60 100 139 Shots Fired 154 | 24 39 91 Gun 36 | 24 6 6 Cannon 96 | . 19 77 Launcher 11 | . 10 1 Special 11 | . 4 7 Kinetic 115 | 12 20 83 Thermal 11 | . 4 7 Explosive 11 | . 10 1 Electromagnetic 17 | 12 5 . Robot Hit Streak 30 | 10 4 30 Robot Miss Streak 3 | 3 3 3 Penetration Max . | . . . Secondary Targets . | . . . Shots Hit Robots 93 | 14 18 61 Core Hits 48 | 7 21 20 Critical Kills 1 | 1 . . Critical Parts Destroyed . | . . . Critical Strikes 3 | 1 . 2 Destroy 1 | 1 . . Blast 2 | . . 2 Melee Attacks . | . . . Impact . | . . . Slashing . | . . . Piercing . | . . . Sneak Attacks . | . . . Combat Hostiles . | . . . Follow-up Attacks . | . . . Damage Inflicted 2059 | 160 736 1163 Guns 296 | 129 31 136 Cannons 1192 | . 179 1013 Explosions 571 | 31 526 14 Melee . | . . . Ramming . | . . . Kinetic 1387 | 50 188 1149 Thermal 31 | 31 . . Explosive 540 | . 526 14 Electromagnetic 101 | 79 22 . Impact . | . . . Slashing . | . . . Piercing . | . . . Highest Corruption . | . . . Average Corruption . | . . . Corruption Purged . | . . . Corruption Blocked . | . . . Overload Shots . | . . . Overflow Damage 67 | 16 51 . Projectiles 9 | . 9 . Explosions 58 | 16 42 . Melee . | . . . Knockbacks 17 | . 3 14 Impact . | . . . Kinetic 17 | . 3 14 Secondary . | . . . Self-Inflicted Damage 124 | 19 105 . Shots 4 | 1 3 . Rammed . | . . . Targets Rammed . | . . . Kicked . | . . . Crushed . | . . . Highest Temperature 40 | 40 40 13 Average Temperature 14 | 23 11 6 Received Heat Transfer 363 | . 39 324 Siege Activations . | . . . Robots Corrupted . | . . . Combat Hostiles . | . . . Parts Fried . | . . . Impact Corruptions . | . . . Robots Melted . | . . . Combat Hostiles . | . . . Parts Melted . | . . . Heat Transferred 50 | 50 . . Parts Sabotaged . | . . . Parts Stolen . | . . . Parts Stripped . | . . . Power Chain Reactions 1 | 1 . . Alert | -11 -10 -10 ------- Run | Yrd Mat Sub Peak Influence 376 | 20 376 . Initial 13 | . 13 . Average 148 | 7 191 . Maximum Alert Level 1 | . 1 . Low Security (%) 55 | 100 41 . Level 1 44 | . 58 . Level 2 . | . . . Level 3 . | . . . Level 4 . | . . . Level 5 . | . . . High Security . | . . . Max Security . | . . . Squads Dispatched . | . . . Investigation . | . . . Extermination . | . . . Reinforcement . | . . . Assault . | . . . Garrison . | . . . Intercept . | . . . Searches Triggered . | . . . Construction Impeded . | . . . Haulers Reinforced . | . . . Active Scanning Responses . | . . . Cargo Convoy Interrupts . | . . . Stealth | -11 -10 -10 --------- Run | Yrd Mat Sub Distress Signals 3 | . 3 . Communications Jammed . | . . . Distress Signals . | . . . Times Spotted 26 | . 14 12 Peak Tracking Total 7 | . 7 2 Tactical Retreats 2 | . 1 1 Traps | -11 -10 -10 ------- Run | Yrd Mat Sub Traps Triggered 3 | . . 3 Indirectly . | . . . Trap Hack Attempts . | . . . Triggered . | . . . Disarmed . | . . . Reprogrammed . | . . . Reused . | . . . Traps Extracted . | . . . Installed . | . . . Triggered . | . . . Machines | -11 -10 -10 ---------- Run | Yrd Mat Sub Machines Disabled 4 | . 3 1 Max in Single Turn 1 | . 1 1 Machines Repaired . | . . . Machines Dismantled . | . . . Machines Sabotaged . | . . . Overloaded Fab Kills . | . . . Hacking | -11 -10 -10 --------- Run | Yrd Mat Sub Machines Accessed 4 | . 4 . Terminals 4 | . 4 . Fabricators . | . . . Repair Stations . | . . . Recycling Units . | . . . Scanalyzers . | . . . Garrison Access . | . . . Total Hacks 12 | . 12 . Successful 8 | . 8 . Failed 4 | . 4 . Catastrophic . | . . . Database Lockouts . | . . . Manual 9 | . 9 . Terminals 12 | . 12 . Fabricators . | . . . Repair Stations . | . . . Recycling Units . | . . . Scanalyzers . | . . . Garrison Access . | . . . Terminal Hacks 5 | . 5 . Record 1 | . 1 . Robot Schematic 1 | . 1 . Robot Analysis 1 | . 1 . Branch Access Points 1 | . 1 . Zone Layout 1 | . 1 . Fabricator Hacks . | . . . Repair Station Hacks . | . . . Recycling Unit Hacks . | . . . Scanalyzer . | . . . Garrison Access Hacks . | . . . Unauthorized Hacks 3 | . 3 . Terminals 3 | . 3 . Track 1 | . 1 . Botnet 1 | . 1 . Operators 1 | . 1 . Fabricators . | . . . Repair Stations . | . . . Recycling Units . | . . . Scanalyzers . | . . . Garrison Access . | . . . Data Cores Recovered . | . . . Used . | . . . Hacking Detections 4 | . 4 . Full Trace Events . | . . . Feedback Events . | . . . Feedback Blocked . | . . . Robot Schematics Acquired 1 | . 1 . Robots Built . | . . . Authchips . | . . . Time . | . . . Total Robot Build Rating . | . . . Part Schematics Acquired . | . . . Parts Built . | . . . Authchips . | . . . Time . | . . . Total Part Build Rating . | . . . Parts Repaired . | . . . Time . | . . . Parts Recycled . | . . . Recycled Matter . | . . . Retrieved Matter . | . . . Retrieved Components . | . . . Parts Scanalyzed . | . . . Part Schematics Acquired . | . . . Parts Damaged . | . . . Bothacking | -11 -10 -10 ------------ Run | Yrd Mat Sub Used RIF Installer . | . . . Robots Hacked . | . . . Non-combat . | . . . Combat . | . . . Robot Hacks Applied . | . . . Relay Couplers Released . | . . . Fabnet Peak Effective % . | . . . Robots Rewired . | . . . Allies Hacked . | . . . Hacks Repelled . | . . . Allies | -11 -10 -10 -------- Run | Yrd Mat Sub Total Allies . | . . . Largest Group . | . . . Highest-Rated Group . | . . . Highest-Rated Ally . | . . . Total Orders . | . . . Ally Attacks . | . . . Total Damage . | . . . Kills . | . . . Allies Corrupted . | . . . Allies Melted . | . . . Intel | -11 -10 -10 ------- Run | Yrd Mat Sub Robot Analysis Total 1 | . 1 . Derelict Logs Recovered 2 | . . 2 Drone Launches . | . . . Drone Recoveries . | . . . Exploration | -11 -10 -10 ------------- Run | Yrd Mat Sub Turns Passed 3454 | 162 530 2762 Spaces Moved 1478 | 69 220 1189 Core 2 | 2 . . Treads 1183 | 67 220 896 Legs . | . . . Wheels 293 | . . 293 Hover . | . . . Flight . | . . . Fastest Speed 50 | 50 160 110 Average Speed 207 | 156 181 215 Slowest Speed 240 | 160 240 240 Overloaded Moves . | . . . Propulsion Burnouts . | . . . Robots Hopped . | . . . Cave-ins Triggered . | . . . Exploration Rate (%) 39 | 5 42 70 Regions Visited 2 Branch Regions 1 Pre-discovered Areas 1 | . . 1 Known Exits Taken . | . . . Unknown Exits Taken 2 | 1 1 . Scrap Searched 2 | . . 2 Spaces Dug 4 | . 2 2 Terrain Destroyed 58 | . 52 6 Melee . | . . . Projectile 4 | . 2 2 AOE 54 | . 50 4 Terrain Rammed . | . . . Walls Destroyed . | . . . Machines Disabled . | . . . Actions | -11 -10 -10 --------- Run | Yrd Mat Sub Total 1681 | 99 305 1277 Wait 65 | . 43 22 Move 1476 | 68 219 1189 Hop . | . . . Pick Up 24 | 9 7 8 Fast Attach 10 | 7 3 . Attach 4 | . . 4 Detach 2 | . 2 . Swap 10 | . 4 6 Drop 10 | 3 5 2 Fire 80 | 12 22 46 Melee . | . . . Ram . | . . . Kick . | . . . Crush . | . . . Escape Stasis . | . . . Rewire . | . . . Trap . | . . . Miscellaneous . | . . . Route ------- -11/Scrapyard -10/Materials (discovered 2 exits: *Min / [*Sub]) -10/Subcaves (discovered 2 exits: [*Mat] / [*Rec]) History --------- Turn | Location | Event 30 | -11/Scrapyard | Discovered new exit (range 15) 163 | -11/Scrapyard | Entered Materials 253 | -10/Materials | Discovered new exit (range 16) 307 | -10/Materials | Build established: Mutant 307 | -10/Materials | Identified exit to Mines 686 | -10/Materials | Discovered new exit (range 3) 693 | -10/Materials | Entered Subcaves 694 | -10/Subcaves | Shifting Twisted Machinery released Mak. Light Armor Plating 706 | -10/Subcaves | Shifting Twisted Machinery released Sub. Monowheel 2785 | -10/Subcaves | Core integrity fell below 50% 2999 | -10/Subcaves | Learned Materials emergency access door positions 3040 | -10/Subcaves | Learned location of Zion (-7) 3051 | -10/Subcaves | A swath of the cavern ceiling suddenly collapsed 3099 | -10/Subcaves | Shifting Twisted Machinery released Sub. Optics 3145 | -10/Subcaves | Shifting Twisted Machinery released Sub. Beam Cannon 3289 | -10/Subcaves | Discovered new exit (range 5) 3436 | -10/Subcaves | Core integrity fell below 20% 3438 | -10/Subcaves | Discovered new exit (range 16) 3455 | -10/Subcaves | Destroyed by Autobeam Turret with Autobeam Last Messages --------------- Machinery. Sub. Beam Cannon falls loose from the Twisted Machinery. 03229_ IX-638(u) builds Twisted Machinery. 03289_ EXIT=FOUND 03404_ Triggered Piercing Trap. 03404_ Spikes shoot up from the floor. 03404_ Critical hit (Impale). 03408_ Triggered Piercing Trap. 03408_ Spikes shoot up from the floor. 03408_ Critical hit (Impale). 03413_ Triggered Shrapnel Trap. 03413_ An expanding cloud of shrapnel blasts out in all directions. 03414_ Dropped Lgt. Treads. 03437_ Grenade Launcher destroyed. 03437_ Ion Engine destroyed. 03438_ EXIT=FOUND 03445_ Autobeam Turret destroyed. 03451_ The unstable cave ceiling collapses. Map ----- +----------------------------------------------------+ | % # ### ###?# ##????## ## # #?????? | | # # ## #?####??????## #???????# | | ?# # #???????????# # ## #???????? | | ?# # ####???????????############???????? | | ## %### ##?????????????????????????????????? | | # ##??????????????????????????????????? | | # ##???????????????????????????????????? | | ## ##???????????????????????????????????? | | ?### ### #??????????????????????????????????## | | ??# ??## ##?????????????????????????????????# | | ??## ???# #?????????????????????????????????# | | ???# #### ###?????????????????????????????????# | | ???# % # ##??????????????????????????????????## | | ?### #???????????????????????????????????? | | ?# #???????????????????????????????????? | | ?## # ##???????????????????????????????????? | | ??# ] ## #????????????????????????????????????? | | ?## * #####???????????????????????????????????? | | ?# ##??" ??????????????????????????????????? | | ?# ##??? ?####????????????????####???##### | | ?## ##???" ## #####?????????### ##??# | | ??### #??# % #???????###"# ##?# # | | ????# ##??< % % ###??####" "" ### # | | ???## #???#"t == #### ## = ## # | | ???# #???#" % | ### # | | ???# ####???????# @## ###### " " # # | | ???# ## #???????## ######????# "# | | ???## ##???????# ??????????## | | ????## ###????# ????????????# ## ### # | | ?????## ##??# ?????????????## ###### # | | ??????## #### #?????????????## #??# | | ???? ### ## #??????????????# #### | | ???"""""" ## ##?????????????## ## | | ???" """ % %% ##?????????????### ## | | ??"" " %!& !% #???????????????## ### | | ??"""""" %! &! #??????###???????# ### | | ????""### ##& #?????## ###?????# ### | | ????""??## ### % #?????# ##????# ###### | | ?????????####### #?????# % #????## ##### | | ????????????### #?????# ###???## # | | ????????????# ##?##### ##??## # | | ????????????## ##??# #### ## | | ?????????????# %##??# ######? | | ?????????????# ##?# % ##% ##????? | | ?????????????# % ### #### ## ###?## | | ?????????????## #??# ## % ## # | | ??????????????## #?# ### ### | | ???????????????# % #?# %#?# #### | | ???????????????# ## #?# ?###### # | | ???????????????######## ##?# #????## # | +----------------------------------------------------+ Best States ------------- Heat Dissipation 25 Energy Generation 10 Energy Capacity 250 Matter Stores 300 Matter Capacity 300 Sight Range 16 Terrain Scan Density 10 Evasion (%) 40 Targeting Accuracy 5 Recoil Reduction 2 Item Schematics ----------------- None Robot Schematics ------------------ M-13 Machinist | -10/Materials | Hacked Fabricated ------------ Nothing Alien Tech Used ----------------- None Achievements -------------- None Challenges ------------ None Game ------ Seed HugeRecyclingStorm Manual? 0 Play Time 00:12:15 Cumulative 686.8 hours Start 2024.09.03 @ 20:46:22 End 2024.09.03 @ 20:58:19 Sessions 1 Manual Loads 0 Difficulty Rogue Special Mode None Game No. 142 Rogue 4 Adventurer 138 Explorer 0 Win Type - Total 11 Types 7/0/1/2/0/0/0/0/1 Lore% 77 Gallery% 83 Achievement% 73 Wizard Run 0 Options --------- Layout 2 ASCII 0 Keyboard 0 Movement Mouse Keybinds 0 Fullscreen 1 Font 24/Smallcaps Map View 50x49 Zoom Use 0% Tactical HUD 1 Map Filters NONE Filters NONE Steam 1 RUN: d19efea6-7e91-4756-97bf-e31e0c55237a